[Event "Mistrovství Čech mládeže 2023 - HD12"]
[Site "Harrachov, Czech Republic"]
[Date "2023.10.27"]
[Round "8.12"]
[White "Školoud, Natanael"]
[Black "Frantsev, Iegor"]
[Result "0-1"]
[TimeControl "90m + 30s"]
[WhiteElo "1193"]
[BlackElo "1397"]

1. e4 {[%clk 01:30:57]} {[%emt 00:00:02]} c6 {[%clk 01:30:48]} {[%emt
00:00:12]} 2. d4 {[%emt 00:00:12]} d5 {[%clk 01:31:08]} {[%emt 00:00:05]} 3.
exd5 {[%clk 01:31:41]} {[%emt 00:00:09]} cxd5 {[%clk 01:31:18]} {[%emt
00:00:20]} 4. c4 {[%clk 01:31:48]} {[%emt 00:00:24]} Nf6 {[%clk 01:31:20]}
{[%emt 00:00:27]} 5. Nc3 {[%clk 01:32:10]} {[%emt 00:00:09]} Nc6 {[%clk
01:31:35]} {[%emt 00:00:14]} 6. Nf3 {[%clk 01:32:10]} {[%emt 00:00:30]} Bg4
{[%clk 01:31:31]} {[%emt 00:00:34]} 7. Be2 {[%clk 01:31:49]} {[%emt 00:00:51]}
e6 {[%clk 01:30:46]} {[%emt 00:01:15]} 8. O-O {[%clk 01:30:37]} {[%emt
00:01:42]} Be7 {[%clk 01:29:16]} {[%emt 00:01:59]} 9. Bf4 {[%clk 01:29:28]}
{[%emt 00:01:40]} O-O {[%clk 01:28:29]} {[%emt 00:01:16]} 10. cxd5 {[%clk
01:22:13]} {[%emt 00:07:47]} Nxd5 {[%clk 01:28:09]} {[%emt 00:00:50]} 11. Be3
{[%clk 01:19:32]} {[%emt 00:03:11]} Bf6 {[%clk 01:24:49]} {[%emt 00:03:48]} 12.
Ne4 {[%clk 01:12:53]} {[%emt 00:07:11]} h6 {[%clk 01:20:34]} {[%emt 00:04:44]}
13. Qd2 {[%clk 01:07:46]} {[%emt 00:05:37]} Bf5 {[%clk 00:55:35]} {[%emt
00:25:28]} 14. Nxf6+ {[%clk 01:02:36]} {[%emt 00:05:41]} Qxf6 {[%clk 00:54:41]}
{[%emt 00:01:24]} 15. Bf4 {[%clk 00:50:25]} {[%emt 00:12:42]} Rfd8 {[%clk
00:46:37]} {[%emt 00:08:32]} 16. Be5 {[%clk 00:44:02]} {[%emt 00:06:54]} Nxe5
{[%clk 00:45:34]} {[%emt 00:01:31]} 17. Nxe5 {[%clk 00:42:42]} {[%emt
00:01:51]} Nb6 {[%clk 00:43:49]} {[%emt 00:02:12]} 18. Rfd1 {[%clk 00:37:37]}
{[%emt 00:05:38]} Rac8 {[%clk 00:41:26]} {[%emt 00:02:50]} 19. Rac1 {[%clk
00:35:06]} {[%emt 00:03:04]} Rxc1 {[%clk 00:40:30]} {[%emt 00:01:26]} 20. Qxc1
{[%clk 00:34:20]} {[%emt 00:01:15]} Rc8 {[%clk 00:38:46]} {[%emt 00:02:15]} 21.
Qe3 {[%clk 00:33:54]} {[%emt 00:00:56]} Rc2 {[%clk 00:27:46]} {[%emt 00:11:29]}
22. Rd2 {[%clk 00:33:43]} {[%emt 00:00:42]} Nd5 {[%clk 00:23:10]} {[%emt
00:05:05]} 23. Rxc2 {[%clk 00:29:40]} {[%emt 00:04:34]} Nxe3 {[%emt 00:03:17]}
24. Rc8+ {[%clk 00:30:00]} {[%emt 00:00:09]} Kh7 {[%clk 00:20:40]} {[%emt
00:00:14]} 25. fxe3 {[%clk 00:30:24]} {[%emt 00:00:06]} Qe7 {[%clk 00:17:40]}
{[%emt 00:03:28]} 26. Bf3 {[%clk 00:29:46]} {[%emt 00:01:10]} f6 {[%clk
00:15:30]} {[%emt 00:02:40]} 27. Ng4 {[%clk 00:29:43]} {[%emt 00:00:33]} e5
{[%clk 00:13:18]} {[%emt 00:02:42]} 28. Rb8 {[%clk 00:29:36]} {[%emt 00:00:37]}
Bxg4 {[%clk 00:13:08]} {[%emt 00:00:40]} 29. Bxg4 {[%clk 00:29:42]} {[%emt
00:00:25]} exd4 {[%clk 00:12:59]} {[%emt 00:00:39]} 30. Bf3 {[%clk 00:28:27]}
{[%emt 00:01:44]} Qxe3+ {[%clk 00:13:01]} {[%emt 00:00:28]} 31. Kf1 {[%clk
00:28:49]} {[%emt 00:00:07]} Qc1+ {[%clk 00:13:05]} {[%emt 00:00:27]} 32. Ke2
{[%clk 00:28:53]} {[%emt 00:00:26]} Qxb2+ {[%clk 00:12:22]} {[%emt 00:01:14]}
33. Kd1 {[%clk 00:29:12]} {[%emt 00:00:11]} Qa1+ {[%clk 00:12:02]} {[%emt
00:00:49]} 34. Kd2 {[%clk 00:29:26]} {[%emt 00:00:16]} Qxa2+ {[%clk 00:11:33]}
{[%emt 00:00:59]} 35. Kd3 {[%clk 00:29:46]} {[%emt 00:00:10]} Qa6+ {[%clk
00:10:49]} {[%emt 00:01:13]} 36. Kd2 {[%clk 00:29:03]} {[%emt 00:01:15]} Qa5+
{[%clk 00:10:02]} {[%emt 00:01:17]} 37. Ke2 {[%clk 00:28:45]} {[%emt 00:00:48]}
Qe5+ {[%clk 00:09:57]} {[%emt 00:00:35]} 38. Kd3 {[%clk 00:28:50]} {[%emt
00:00:25]} Qxb8 {[%clk 00:10:08]} {[%emt 00:00:19]} 39. Be4+ {[%clk 00:29:07]}
{[%emt 00:00:12]} g6 {[%clk 00:10:15]} {[%emt 00:00:23]} 40. Kxd4 {[%clk
00:29:30]} {[%emt 00:00:07]} Qe5+ {[%clk 00:10:17]} {[%emt 00:00:27]} 41. Kd3
{[%clk 00:29:40]} {[%emt 00:00:21]} Qxh2 {[%clk 00:10:17]} {[%emt 00:00:31]} 42.
Ke3 {[%clk 00:29:41]} {[%emt 00:00:29]} b5 {[%clk 00:10:28]} {[%emt 00:00:19]}
43. Kf3 {[%clk 00:30:02]} {[%emt 00:00:08]} f5 {[%clk 00:10:31]} {[%emt
00:00:27]} 44. Bd3 {[%clk 00:30:20]} {[%emt 00:00:12]} b4 {[%clk 00:10:43]}
{[%emt 00:00:18]} 45. Ke3 {[%clk 00:31:01]} {[%emt 00:00:26]} Qg3+ {[%clk
00:11:13]} {[%emt 00:00:23]} 46. Ke2 {[%clk 00:31:17]} {[%emt 00:00:14]} b3
{[%clk 00:11:29]} {[%emt 00:00:14]} 47. Kf1 {[%clk 00:31:19]} {[%emt 00:00:28]}
Qxd3+ {[%clk 00:11:49]} {[%emt 00:00:10]} 48. Kg1 {[%clk 00:31:41]} {[%emt
00:00:08]} b2 {[%clk 00:12:08]} {[%emt 00:00:11]} 49. Kh2 {[%clk 00:31:52]}
{[%emt 00:00:20]} b1=N {[%clk 00:12:10]} {[%emt 00:00:27]} 50. g3 {[%clk
00:32:14]} {[%emt 00:00:08]} Qf3 {[%clk 00:12:00]} {[%emt 00:00:40]} 51. Kg1
{[%clk 00:32:18]} {[%emt 00:00:26]} Qe2 {[%clk 00:12:13]} {[%emt 00:00:17]} 52.
g4 {[%clk 00:32:40]} {[%emt 00:00:08]} Nc3 {[%clk 00:12:19]} {[%emt 00:00:24]}
53. gxf5 {[%clk 00:32:46]} {[%emt 00:00:24]} Ne4 {[%clk 00:12:34]} {[%emt
00:00:15]} 54. Kh1 {[%clk 00:32:39]} {[%emt 00:00:37]} Qf2 {[%clk 00:12:36]}
{[%emt 00:00:26]} 55. fxg6+ {[%clk 00:32:58]} {[%emt 00:00:13]} Kg8 {[%clk
00:12:51]} {[%emt 00:00:16]} 56. g7 {[%clk 00:33:17]} {[%emt 00:00:11]} Ng3#
{[%clk 00:13:11]} {[%emt 00:00:09]} 0-1

[Event "Mistrovství Čech mládeže 2023 - HD12"]
[Site "Harrachov, Czech Republic"]
[Date "2023.10.27"]
[Round "8.13"]
[White "Kubát, Jonáš"]
[Black "Remizov, Artem"]
[Result "0-1"]
[TimeControl "90m + 30s"]
[WhiteElo "1423"]
[BlackElo "1259"]

1. e4 {[%clk 01:30:58]} {[%emt 00:00:01]} e5 {[%clk 01:30:48]} {[%emt
00:00:13]} 2. Nc3 {[%clk 01:31:22]} {[%emt 00:00:05]} Nf6 {[%clk 01:31:08]}
{[%emt 00:00:10]} 3. f4 {[%clk 01:31:48]} {[%emt 00:00:05]} d6 {[%clk
01:30:45]} {[%emt 00:00:53]} 4. Bc4 {[%clk 01:32:05]} {[%emt 00:00:13]} Nc6
{[%clk 01:30:32]} {[%emt 00:00:43]} 5. Nf3 {[%clk 01:31:49]} {[%emt 00:00:45]}
Bg4 {[%clk 01:28:29]} {[%emt 00:02:34]} 6. O-O {[%clk 01:31:00]} {[%emt
00:01:17]} Nd4 {[%clk 01:28:24]} {[%emt 00:00:36]} 7. d3 {[%clk 01:30:10]}
{[%emt 00:01:20]} Nxf3+ {[%clk 01:28:30]} {[%emt 00:00:25]} 8. gxf3 {[%clk
01:30:29]} {[%emt 00:00:11]} Bh3 {[%clk 01:28:51]} {[%emt 00:00:09]} 9. Re1
{[%clk 01:29:24]} {[%emt 00:01:34]} exf4 {[%clk 01:27:53]} {[%emt 00:01:28]} 10.
e5 {[%clk 01:29:02]} {[%emt 00:00:53]} Nh5 {[%clk 01:27:09]} {[%emt 00:01:14]}
11. exd6+ {[%clk 01:28:37]} {[%emt 00:00:55]} Kd7 {[%clk 01:27:19]} {[%emt
00:00:20]} 12. Bxf7 {[%clk 01:27:25]} {[%emt 00:01:42]} Qg5+ {[%clk 01:27:12]}
{[%emt 00:00:37]} 0-1

[Event "Mistrovství Čech mládeže 2023 - HD12"]
[Site "Harrachov, Czech Republic"]
[Date "2023.10.27"]
[Round "8.14"]
[White "Ježek, Jiří"]
[Black "Ta, Xuan Nguyen"]
[Result "0-1"]
[TimeControl "90m + 30s"]
[WhiteElo "1392"]
[BlackElo "1252"]

1. d4 {[%clk 01:30:55]} d5 {[%clk 01:30:40]} {[%emt 00:00:20]} 2. c4 {[%clk
01:31:16]} {[%emt 00:00:10]} c6 {[%clk 01:30:47]} {[%emt 00:00:23]} 3. Nc3
{[%clk 01:31:09]} {[%emt 00:00:37]} Nf6 {[%clk 01:30:45]} {[%emt 00:00:31]} 4.
Bg5 {[%clk 01:30:45]} {[%emt 00:00:54]} dxc4 {[%clk 01:30:39]} {[%emt
00:00:36]} 5. e4 {[%clk 01:26:07]} {[%emt 00:05:09]} b5 {[%clk 01:30:35]}
{[%emt 00:00:34]} 6. a3 {[%clk 01:23:07]} {[%emt 00:03:30]} Bb7 {[%clk
01:29:11]} {[%emt 00:01:53]} 7. Bxf6 {[%clk 01:15:01]} {[%emt 00:08:36]} exf6
{[%clk 01:28:47]} {[%emt 00:00:54]} 8. d5 {[%clk 01:11:02]} {[%emt 00:04:30]}
Nd7 {[%clk 01:16:36]} {[%emt 00:12:40]} 9. Nf3 {[%clk 01:05:34]} {[%emt
00:05:58]} a6 {[%clk 01:05:16]} {[%emt 00:11:51]} 10. Be2 {[%clk 00:55:17]}
{[%emt 00:10:46]} Bc5 {[%clk 01:03:55]} {[%emt 00:01:51]} 11. O-O {[%clk
00:54:28]} {[%emt 00:01:19]} Qb6 {[%clk 01:02:49]} {[%emt 00:01:36]} 12. a4
{[%clk 00:49:29]} {[%emt 00:05:29]} Ne5 {[%clk 00:53:41]} {[%emt 00:09:37]} 13.
Nxe5 {[%clk 00:36:22]} {[%emt 00:13:37]} fxe5 {[%clk 00:53:53]} {[%emt
00:00:19]} 14. Qc2 {[%clk 00:29:48]} {[%emt 00:07:04]} O-O {[%clk 00:53:02]}
{[%emt 00:01:21]} 15. Rad1 {[%clk 00:21:56]} {[%emt 00:08:22]} Bd4 {[%clk
00:51:50]} {[%emt 00:01:42]} 16. Bf3 {[%clk 00:18:38]} {[%emt 00:03:48]} Rac8
{[%clk 00:47:57]} {[%emt 00:04:23]} 17. dxc6 {[%clk 00:15:35]} {[%emt
00:03:32]} Bxc6 {[%clk 00:44:39]} {[%emt 00:03:48]} 18. axb5 {[%clk 00:14:26]}
{[%emt 00:01:40]} axb5 {[%clk 00:41:09]} {[%emt 00:04:00]} 19. Ra1 {[%clk
00:06:47]} {[%emt 00:08:09]} Rfd8 {[%clk 00:38:55]} {[%emt 00:02:44]} 20. Rfd1
{[%clk 00:03:57]} {[%emt 00:03:21]} b4 {[%clk 00:36:47]} {[%emt 00:02:38]} 21.
Na4 {[%clk 00:02:04]} {[%emt 00:02:22]} Qb5 {[%clk 00:36:32]} {[%emt 00:00:45]}
22. Be2 {[%clk 00:01:49]} {[%emt 00:00:45]} Be8 {[%clk 00:35:34]} {[%emt
00:01:27]} 23. Qb1 {[%clk 00:01:01]} {[%emt 00:01:19]} Ra8 {[%clk 00:35:14]}
{[%emt 00:00:51]} 24. b3 {[%clk 00:01:06]} {[%emt 00:00:24]} Bxa1 {[%clk
00:33:20]} {[%emt 00:02:23]} 25. Qxa1 {[%clk 00:00:56]} {[%emt 00:00:41]} Rdc8
{[%clk 00:31:47]} {[%emt 00:02:03]} 26. Qb1 {[%clk 00:00:33]} {[%emt 00:00:52]}
Rxa4 {[%clk 00:30:19]} {[%emt 00:01:59]} 27. bxa4 {[%clk 00:00:39]} {[%emt
00:00:24]} Qxa4 {[%clk 00:30:42]} {[%emt 00:00:07]} 28. Rc1 {[%clk 00:00:41]}
{[%emt 00:00:28]} c3 {[%clk 00:30:45]} {[%emt 00:00:28]} 29. Qd3 {[%clk
00:00:36]} {[%emt 00:00:34]} Qa3 {[%clk 00:30:51]} {[%emt 00:00:25]} 30. Rc2
{[%clk 00:00:40]} {[%emt 00:00:25]} Qa1+ {[%clk 00:31:01]} {[%emt 00:00:20]} 31.
Bd1 {[%clk 00:00:32]} {[%emt 00:00:38]} b3 {[%clk 00:31:01]} {[%emt 00:00:30]}
32. Re2 {[%clk 00:00:31]} {[%emt 00:00:30]} Bb5 {[%clk 00:30:41]} {[%emt
00:00:51]} 0-1

[Event "Mistrovství Čech mládeže 2023 - HD12"]
[Site "Harrachov, Czech Republic"]
[Date "2023.10.27"]
[Round "8.15"]
[White "Zeman, Jonáš"]
[Black "Křivka, Lukáš"]
[Result "1/2-1/2"]
[TimeControl "90m + 30s"]
[WhiteElo "1216"]
[BlackElo "1386"]

1. e4 {[%clk 01:30:58]} {[%emt 00:00:02]} c6 {[%clk 01:30:46]} {[%emt
00:00:14]} 2. Nf3 {[%clk 01:31:18]} {[%emt 00:00:11]} d5 {[%clk 01:30:21]}
{[%emt 00:00:54]} 3. Nc3 {[%clk 01:31:32]} {[%emt 00:00:15]} Bg4 {[%clk
01:30:11]} {[%emt 00:00:40]} 4. h3 {[%clk 01:31:54]} {[%emt 00:00:09]} Bxf3
{[%clk 01:29:58]} {[%emt 00:00:43]} 5. Qxf3 {[%clk 01:32:12]} {[%emt 00:00:12]}
e6 {[%clk 01:30:05]} {[%emt 00:00:23]} 6. d3 {[%clk 01:32:19]} {[%emt
00:00:23]} d4 {[%clk 01:21:56]} {[%emt 00:08:40]} 7. Ne2 {[%clk 01:32:15]}
{[%emt 00:00:34]} e5 {[%clk 01:10:30]} {[%emt 00:11:55]} 8. Bd2 {[%clk
01:28:11]} {[%emt 00:04:33]} Qb6 {[%clk 01:00:37]} {[%emt 00:10:24]} 9. O-O-O
{[%clk 01:25:27]} {[%emt 00:03:13]} Nd7 {[%clk 00:59:07]} {[%emt 00:02:01]} 10.
Qg3 {[%clk 01:23:05]} {[%emt 00:02:51]} c5 {[%clk 00:53:51]} {[%emt 00:05:46]}
11. f4 {[%clk 01:21:40]} {[%emt 00:01:55]} Qg6 {[%clk 00:51:47]} {[%emt
00:02:33]} 12. Qh2 {[%clk 01:18:33]} {[%emt 00:03:38]} Qe6 {[%clk 00:42:02]}
{[%emt 00:10:14]} 13. Kb1 {[%clk 01:15:52]} {[%emt 00:03:11]} Bd6 {[%clk
00:39:55]} {[%emt 00:02:37]} 14. f5 {[%clk 01:12:14]} {[%emt 00:04:08]} Qe7
{[%clk 00:36:08]} {[%emt 00:04:16]} 15. g4 {[%clk 01:08:51]} {[%emt 00:03:55]}
O-O-O {[%clk 00:35:35]} {[%emt 00:01:01]} 16. h4 {[%clk 01:04:25]} {[%emt
00:04:58]} Qe8 {[%clk 00:34:20]} {[%emt 00:01:45]} 17. g5 {[%clk 01:01:10]}
{[%emt 00:03:45]} f6 {[%clk 00:31:31]} {[%emt 00:03:19]} 18. Ng3 {[%clk
00:52:43]} {[%emt 00:08:57]} Nb6 {[%clk 00:25:59]} {[%emt 00:06:03]} 19. h5
{[%clk 00:47:08]} {[%emt 00:06:04]} Ne7 {[%clk 00:25:16]} {[%emt 00:01:12]} 20.
h6 {[%clk 00:43:33]} {[%emt 00:04:06]} Qf7 {[%clk 00:16:59]} {[%emt 00:08:47]}
21. hxg7 {[%clk 00:41:20]} {[%emt 00:02:42]} Qxg7 {[%clk 00:17:06]} {[%emt
00:00:24]} 22. Nh5 {[%clk 00:40:25]} {[%emt 00:01:24]} Qf7 {[%clk 00:16:44]}
{[%emt 00:00:49]} 23. gxf6 {[%clk 00:34:45]} {[%emt 00:06:14]} Ng8 {[%clk
00:16:20]} {[%emt 00:00:53]} 24. Bg5 {[%clk 00:32:53]} {[%emt 00:02:22]} Nd7
{[%clk 00:15:17]} {[%emt 00:01:33]} 25. Be2 {[%clk 00:30:05]} {[%emt 00:03:19]}
Ngxf6 {[%clk 00:14:46]} {[%emt 00:01:00]} 26. Nxf6 {[%clk 00:28:31]} {[%emt
00:02:05]} Nxf6 {[%clk 00:15:04]} {[%emt 00:00:12]} 27. Qh4 {[%clk 00:26:32]}
{[%emt 00:02:29]} Rdf8 {[%clk 00:14:16]} {[%emt 00:01:14]} 28. Bxf6 {[%clk
00:25:19]} {[%emt 00:01:46]} Qxf6 {[%clk 00:14:37]} {[%emt 00:00:10]} 29. Qxf6
{[%clk 00:25:42]} {[%emt 00:00:06]} Rxf6 {[%clk 00:14:56]} {[%emt 00:00:12]} 30.
a3 {[%clk 00:25:58]} {[%emt 00:00:14]} Be7 {[%clk 00:12:34]} {[%emt 00:02:49]}
31. Rh2 {[%clk 00:25:44]} {[%emt 00:00:47]} h6 {[%clk 00:11:21]} {[%emt
00:01:43]} 32. Bh5 {[%clk 00:25:23]} {[%emt 00:00:51]} Rff8 {[%clk 00:10:01]}
{[%emt 00:01:51]} 33. Bg6 {[%clk 00:25:33]} {[%emt 00:00:19]} Bg5 {[%clk
00:10:08]} {[%emt 00:00:23]} 34. b4 {[%clk 00:24:16]} {[%emt 00:01:47]} cxb4
{[%clk 00:09:02]} {[%emt 00:01:36]} 35. axb4 {[%clk 00:24:24]} {[%emt
00:00:22]} Be7 {[%clk 00:09:03]} {[%emt 00:00:28]} 36. Rdh1 {[%clk 00:24:03]}
{[%emt 00:00:51]} Bg5 {[%clk 00:08:17]} {[%emt 00:01:15]} 37. Kb2 {[%clk
00:24:12]} {[%emt 00:00:22]} Rf6 {[%clk 00:08:29]} {[%emt 00:00:18]} 38. Ra1
{[%clk 00:22:16]} {[%emt 00:02:27]} a6 {[%clk 00:08:07]} {[%emt 00:00:52]} 39.
Kb3 {[%clk 00:20:57]} {[%emt 00:01:48]} 1/2-1/2

[Event "Mistrovství Čech mládeže 2023 - HD12"]
[Site "Harrachov, Czech Republic"]
[Date "2023.10.27"]
[Round "8.16"]
[White "Slonek, Richard"]
[Black "Fadrný, Jáchym"]
[Result "0-1"]
[TimeControl "90m + 30s"]
[WhiteElo "1128"]
[BlackElo "1365"]

1. e4 {[%clk 01:30:55]} {[%emt 00:00:05]} c5 {[%clk 01:30:49]} {[%emt
00:00:12]} 2. d4 {[%clk 01:31:09]} {[%emt 00:00:16]} cxd4 {[%clk 01:30:46]}
{[%emt 00:00:33]} 3. c3 {[%clk 01:31:23]} {[%emt 00:00:15]} d3 {[%clk
01:30:47]} {[%emt 00:00:30]} 4. Bxd3 {[%clk 01:31:19]} {[%emt 00:00:33]} Nc6
{[%clk 01:30:51]} {[%emt 00:00:27]} 5. Nf3 {[%clk 01:31:12]} {[%emt 00:00:36]}
d6 {[%clk 01:30:19]} {[%emt 00:01:03]} 6. Nbd2 {[%clk 01:29:23]} {[%emt
00:02:19]} Nf6 {[%clk 01:29:30]} {[%emt 00:01:19]} 7. Nf1 {[%clk 01:28:32]}
{[%emt 00:01:21]} g6 {[%clk 01:26:03]} {[%emt 00:03:57]} 8. Bg5 {[%clk
01:27:15]} {[%emt 00:01:47]} Bg7 {[%clk 01:23:18]} {[%emt 00:03:15]} 9. Qd2
{[%clk 01:26:32]} {[%emt 00:01:12]} O-O {[%clk 01:21:16]} {[%emt 00:02:32]} 10.
O-O-O {[%clk 01:25:51]} {[%emt 00:01:11]} Be6 {[%clk 01:15:30]} {[%emt
00:06:16]} 11. Kb1 {[%clk 01:24:40]} {[%emt 00:01:40]} Nd7 {[%clk 01:13:08]}
{[%emt 00:02:53]} 12. h4 {[%clk 01:23:00]} {[%emt 00:02:09]} Nde5 {[%clk
01:10:48]} {[%emt 00:02:51]} 13. Nxe5 {[%clk 01:21:37]} {[%emt 00:01:53]} Nxe5
{[%clk 01:10:59]} {[%emt 00:00:19]} 14. f4 {[%clk 01:20:36]} {[%emt 00:01:31]}
Nxd3 {[%clk 01:09:06]} {[%emt 00:02:24]} 15. Qxd3 {[%clk 01:20:57]} {[%emt
00:00:08]} Bg4 {[%clk 01:09:09]} {[%emt 00:00:27]} 16. f5 {[%clk 01:19:56]}
{[%emt 00:01:31]} Bxd1 {[%clk 01:08:13]} {[%emt 00:01:26]} 17. Qxd1 {[%clk
01:20:17]} {[%emt 00:00:08]} Rc8 {[%clk 01:04:02]} {[%emt 00:04:41]} 18. Qd5
{[%clk 01:18:42]} {[%emt 00:02:05]} Qd7 {[%clk 00:51:06]} {[%emt 00:13:26]} 19.
Ne3 {[%clk 01:15:50]} {[%emt 00:03:19]} Rc5 {[%clk 00:49:08]} {[%emt 00:02:32]}
20. Qd3 {[%clk 01:14:34]} {[%emt 00:01:46]} Rfc8 {[%clk 00:46:36]} {[%emt
00:03:01]} 21. Nd5 {[%clk 01:13:41]} {[%emt 00:01:23]} Re8 {[%clk 00:42:53]}
{[%emt 00:04:14]} 22. f6 {[%clk 01:11:39]} {[%emt 00:02:32]} exf6 {[%clk
00:41:28]} {[%emt 00:01:55]} 23. Bxf6 {[%clk 01:11:20]} {[%emt 00:00:49]} Rxd5
{[%clk 00:40:08]} {[%emt 00:01:50]} 24. Qxd5 {[%clk 01:11:35]} {[%emt
00:00:16]} Bxf6 {[%clk 00:40:29]} {[%emt 00:00:09]} 25. h5 {[%clk 01:11:37]}
{[%emt 00:00:26]} Qe7 {[%clk 00:39:03]} {[%emt 00:01:58]} 26. hxg6 {[%clk
01:10:21]} {[%emt 00:01:45]} hxg6 {[%clk 00:37:29]} {[%emt 00:02:03]} 27. Rd1
{[%clk 01:08:59]} {[%emt 00:01:52]} Qxe4+ {[%clk 00:36:25]} {[%emt 00:01:35]}
28. Qxe4 {[%clk 01:08:32]} {[%emt 00:00:58]} Rxe4 {[%clk 00:36:00]} {[%emt
00:00:55]} 29. Rxd6 {[%clk 01:08:55]} {[%emt 00:00:07]} Kg7 {[%clk 00:36:24]}
{[%emt 00:00:05]} 30. Rd7 {[%clk 01:08:41]} {[%emt 00:00:44]} Re7 {[%clk
00:36:41]} {[%emt 00:00:13]} 31. Rd2 {[%clk 01:08:06]} {[%emt 00:01:05]} Kh6
{[%clk 00:36:40]} {[%emt 00:00:32]} 32. Kc2 {[%clk 01:08:21]} {[%emt 00:00:15]}
Kg5 {[%clk 00:36:48]} {[%emt 00:00:16]} 33. Kb3 {[%clk 01:08:38]} {[%emt
00:00:19]} Kg4 {[%clk 00:35:29]} {[%emt 00:01:48]} 34. Kc4 {[%clk 01:08:31]}
{[%emt 00:00:36]} Kg3 {[%clk 00:34:21]} {[%emt 00:01:34]} 35. b4 {[%clk
01:08:42]} {[%emt 00:00:25]} Rc7+ {[%clk 00:34:38]} {[%emt 00:00:13]} 36. Kb5
{[%clk 01:08:34]} {[%emt 00:00:33]} Bxc3 {[%clk 00:33:43]} {[%emt 00:01:30]} 37.
Re2 {[%clk 01:06:11]} {[%emt 00:02:51]} f5 {[%clk 00:31:37]} {[%emt 00:02:37]}
38. a4 {[%clk 01:06:20]} {[%emt 00:00:22]} g5 {[%clk 00:31:45]} {[%emt
00:00:22]} 39. a5 {[%clk 01:06:03]} {[%emt 00:00:45]} f4 {[%clk 00:31:50]}
{[%emt 00:00:27]} 40. Ka4 {[%clk 01:05:41]} {[%emt 00:00:52]} f3 {[%clk
00:31:10]} {[%emt 00:01:08]} 41. gxf3 {[%clk 01:05:52]} {[%emt 00:00:20]} Kxf3
{[%clk 00:31:32]} {[%emt 00:00:08]} 42. Re8 {[%clk 01:05:58]} {[%emt 00:00:23]}
g4 {[%clk 00:31:34]} {[%emt 00:00:29]} 43. Ra8 {[%clk 01:05:41]} {[%emt
00:00:47]} Bd4 {[%clk 00:31:38]} {[%emt 00:00:27]} 44. b5 {[%clk 01:05:25]}
{[%emt 00:00:46]} b6 {[%clk 00:31:45]} {[%emt 00:00:23]} 45. Rf8+ {[%clk
01:05:22]} {[%emt 00:00:32]} Kg3 {[%clk 00:31:52]} {[%emt 00:00:23]} 46. Rd8
{[%clk 01:05:18]} {[%emt 00:00:33]} Bf2 {[%clk 00:32:00]} {[%emt 00:00:23]} 47.
Rf8 {[%clk 01:04:51]} {[%emt 00:00:57]} Kg2 {[%clk 00:32:07]} {[%emt 00:00:24]}
48. Rh8 {[%clk 01:04:56]} {[%emt 00:00:24]} g3 {[%clk 00:32:27]} {[%emt
00:00:11]} 49. Rh5 {[%clk 01:04:57]} {[%emt 00:00:29]} Kf1 {[%clk 00:32:40]}
{[%emt 00:00:17]} 50. Rh1+ {[%clk 01:05:07]} {[%emt 00:00:18]} Bg1 {[%clk
00:33:04]} {[%emt 00:00:07]} 51. Rh3 {[%clk 01:05:02]} {[%emt 00:00:34]} Bh2
{[%clk 00:33:03]} {[%emt 00:00:31]} 52. axb6 {[%clk 01:04:33]} {[%emt
00:01:00]} axb6 {[%clk 00:31:45]} {[%emt 00:01:49]} 53. Rh6 {[%clk 01:04:38]}
{[%emt 00:00:22]} g2 {[%clk 00:31:52]} {[%emt 00:00:26]} 54. Rxh2 {[%emt
00:00:28]} g1=Q {[%clk 00:32:09]} {[%emt 00:00:04]} 55. Rb2 {[%clk 01:04:56]}
{[%emt 00:00:21]} Qd4+ {[%clk 00:32:29]} {[%emt 00:00:12]} 56. Rb4 {[%clk
01:05:11]} {[%emt 00:00:14]} Ra7+ {[%clk 00:32:48]} {[%emt 00:00:12]} 57. Kb3
{[%clk 01:05:27]} {[%emt 00:00:14]} Qd3+ {[%clk 00:32:41]} {[%emt 00:00:37]} 58.
Kb2 {[%clk 01:05:45]} {[%emt 00:00:12]} Qa3+ {[%clk 00:32:53]} {[%emt
00:00:18]} 59. Kb1 {[%clk 01:05:40]} {[%emt 00:00:34]} Qxb4+ {[%clk 00:33:12]}
{[%emt 00:00:11]} 0-1